bitfinex/quotes_SOLUSD_20251117
["timestamp","ask_amount","ask_price","bid_price","bid_amount"]
[1763370821940,7.7,141.79,141.78,24.55359049]
[1763370822445,7.7,141.79,141.78,25.10359049]
[1763370823847,7.7,141.79,141.78,24.55359049]
[1763370824360,7.7,141.79,141.78,25.10359049]
[1763370825645,8.41,141.83,141.81,22.6512]
[1763370825956,7.7,141.82,141.81,22.6512]
[1763370826343,7.7,141.82,141.81,43.84886825]
[1763370826943,7.7,141.82,141.81,47.20029612]
[1763370829471,0.71,141.83,141.81,43.84886825]
[1763370829680,0.71,141.83,141.82,3.35142787]
[1763370830186,0.71,141.83,141.82,26.00262787]
[1763370833152,103.295653,141.84,141.82,26.00262787]
[1763370833570,0.71,141.83,141.82,26.00262787]
[1763370835384,0.71,141.83,141.82,22.6512]
[1763370835759,0.71,141.83,141.82,26.00262787]
[1763370837880,103.295653,141.84,141.83,22.6512]
[1763370838255,103.295653,141.84,141.83,26.00262787]
[1763370838462,103.295653,141.84,141.83,22.6512]
[1763370841695,103.295653,141.84,141.83,26.00262787]
[1763370843103,102.585653,141.84,141.83,26.00262787]
[1763370843261,102.72781457,141.84,141.83,26.00262787]
[1763370843461,103.40781457,141.84,141.83,26.00262787]
[1763370845907,103.40781457,141.84,141.83,22.6512]
[1763370846079,0.14216157,141.83,141.81,22.6512]
[1763370846277,7.84216157,141.82,141.81,22.6512]
[1763370846671,8.52216157,141.82,141.81,22.6512]
[1763370846968,0.14216157,141.81,141.78,21.20216262]
[1763370847168,0.82216157,141.81,141.77,3.35142787]
[1763370847367,0.82216157,141.81,141.78,22.6512]
[1763370847572,0.82216157,141.81,141.75,21.20216262]
[1763370847773,8.52216157,141.81,141.77,3.35142787]
[1763370847968,8.52216157,141.81,141.78,22.6512]
[1763370848174,0.14216157,141.79,141.78,22.6512]
[1763370848601,0.14216157,141.79,141.78,26.00262787]
[1763370850276,0.14216157,141.8,141.78,34.25262787]
[1763370850476,0.14216157,141.8,141.79,3.35142787]
[1763370854314,0.82216157,141.83,141.79,3.90142787]
[1763370854486,0.82216157,141.83,141.82,3.35142787]
[1763370854687,103.265653,141.84,141.82,26.00262787]
[1763370855083,103.265653,141.84,141.82,22.6512]
[1763370855310,103.265653,141.84,141.83,3.35142787]
[1763370855497,103.40781457,141.84,141.83,3.35142787]
[1763370856204,102.72781457,141.84,141.83,3.35142787]
[1763370856709,103.40781457,141.84,141.83,3.35142787]
[1763370857406,103.265653,141.84,141.83,3.35142787]
[1763370857611,0.14216157,141.83,141.81,44.39737055]
[1763370858005,0.14216157,141.83,141.81,43.84737055]
[1763370858898,0.14216157,141.83,141.82,3.35142787]
[1763370861401,0.82216157,141.83,141.82,3.35142787]
[1763370861896,0.14216157,141.83,141.82,3.35142787]
[1763370862909,0.14216157,141.83,141.82,2.14278811]
[1763370864110,0.14216157,141.83,141.81,49.78214431]
[1763370864313,0.14216157,141.83,141.82,2.14278811]
[1763370866615,0.14216157,141.83,141.81,49.78214431]
[1763370866804,0.14216157,141.83,141.82,2.14278811]
[1763370867422,103.305653,141.84,141.82,2.14278811]
[1763370867588,103.305653,141.84,141.83,2.14278811]
[1763370870333,103.44781457,141.84,141.83,2.14278811]
[1763370883242,103.44781457,141.84,141.81,22.6512]
[1763370883523,103.44781457,141.84,141.83,2.14278811]
[1763370883732,103.39781457,141.84,141.83,2.14278811]
[1763370894515,102.72781457,141.84,141.83,2.14278811]
[1763370895045,103.39781457,141.84,141.83,2.14278811]
[1763370896831,0.81216157,141.84,141.83,2.14278811]
[1763370898338,0.14216157,141.84,141.83,2.14278811]
[1763370898839,0.81216157,141.84,141.83,2.14278811]
[1763370899432,0.81216157,141.84,141.83,8.07756187]
[1763370900341,0.14216157,141.84,141.83,8.62756187]
[1763370900535,0.14216157,141.84,141.83,2.69278811]
[1763370901824,0.14216157,141.84,141.83,2.14278811]
[1763370902227,0.14216157,141.84,141.83,2.69278811]
[1763370902731,0.14216157,141.85,141.84,22.6512]
[1763370902932,0.14216157,141.85,141.84,30.74997199]
[1763370903338,0.14216157,141.85,141.84,24.79398811]
[1763370904424,0.80216157,141.85,141.83,8.09877199]
[1763370904631,0.14216157,141.84,141.83,2.14278811]
[1763370904837,0.14216157,141.84,141.82,5.95598388]
[1763370905036,0.14216157,141.82,141.81,28.60718388]
[1763370905230,0.14216157,141.82,141.81,30.74997199]
[1763370905425,110.285653,141.89,141.81,30.74997199]
[1763370905627,0.80216157,141.88,141.84,5.95598388]
[1763370906740,0.80216157,141.88,141.87,2.14278811]
[1763370907326,7.7,141.89,141.87,2.14278811]
[1763370907648,8.50216157,141.89,141.88,2.14278811]
[1763370907839,7.84216157,141.89,141.88,2.14278811]
[1763370908044,8.36,141.89,141.88,2.14278811]
[1763370908541,8.50216157,141.89,141.88,2.14278811]
[1763370911084,7.84216157,141.89,141.88,2.14278811]
[1763370911353,8.50216157,141.89,141.88,2.14278811]
[1763370911733,7.84216157,141.89,141.88,2.14278811]
[1763370911944,8.50216157,141.89,141.88,2.14278811]
[1763370912346,7.84216157,141.89,141.88,2.69278811]
[1763370912535,0.80216157,141.92,141.89,22.6512]
[1763370912746,0.80216157,141.92,141.9,2.14278811]
[1763370913168,7.8,141.91,141.9,25.34398811]
[1763370913458,7.94216157,141.91,141.9,25.34398811]
[1763370914136,7.8,141.91,141.9,25.34398811]
[1763370914525,7.94216157,141.91,141.9,24.79398811]
[1763370915466,7.94216157,141.91,141.9,25.34398811]
[1763370915954,7.8,141.91,141.9,25.34398811]
[1763370916133,0.1,141.91,141.9,25.34398811]
[1763370916331,0.1,141.91,141.9,46.52519332]
[1763370916837,0.1,141.91,141.9,56.31402101]
[1763370917248,0.1,141.91,141.9,55.76402101]
[1763370917960,0.1,141.91,141.9,45.97519332]
[1763370918270,0.91216157,141.91,141.87,5.93871256]
[1763370918471,0.14216157,141.89,141.85,16.27754025]
[1763370918641,0.14216157,141.89,141.88,24.79398811]
[1763370923152,0.81216157,141.89,141.88,2.14278811]
[1763370924787,0.81216157,141.89,141.88,3.34559362]
[1763370929162,0.81216157,141.89,141.87,3.34559362]
[1763370929368,0.81216157,141.89,141.82,3.34559362]
[1763370929563,0.81216157,141.89,141.84,3.34559362]
[1763370929765,0.14216157,141.87,141.83,3.34559362]
[1763370929968,0.14216157,141.87,141.86,3.34559362]
[1763370931663,0.83216157,141.87,141.86,3.34559362]
[1763370934783,0.14216157,141.88,141.86,3.34559362]
[1763370934957,0.14216157,141.88,141.87,3.34559362]
[1763370936978,0.14216157,141.89,141.87,3.34559362]
[1763370937178,0.14216157,141.89,141.88,3.34559362]
[1763370937486,0.83216157,141.89,141.88,3.34559362]
[1763370937866,0.1,141.91,141.9,22.6512]
[1763370938083,0.1,141.91,141.9,3.34559362]
[1763370938279,0.1,141.91,141.9,6.71995372]
[1763370938482,0.1,141.91,141.9,29.37115372]
[1763370939068,0.1,141.91,141.9,39.15998141]
[1763370939779,0.1,141.91,141.9,38.60998141]
[1763370940666,0.1,141.91,141.9,39.15998141]
[1763370942390,0.1,141.91,141.9,38.60998141]
[1763370943985,0.1,141.91,141.9,25.4755601]
[1763370944193,0.93216157,141.91,141.9,28.82115372]
[1763370944382,0.24216157,141.91,141.9,6.16995372]
[1763370944582,0.24216157,141.91,141.9,28.82115372]
[1763370945987,0.1,141.91,141.9,28.82115372]
[1763370946193,0.1,141.91,141.9,29.37115372]
[1763370946387,0.1,141.91,141.9,28.82115372]
[1763370955599,0.1,141.91,141.9,25.4755601]
[1763370955896,0.1,141.91,141.9,28.82115372]
[1763370958398,0.1,141.91,141.9,25.4755601]
[1763370958704,0.79,141.91,141.9,28.82115372]
[1763370959679,0.1,141.91,141.9,28.82115372]
[1763370968302,0.91216157,141.91,141.9,25.4755601]
[1763370968506,0.91216157,141.91,141.9,28.82115372]
[1763370969195,0.91216157,141.91,141.86,5.92996127]
[1763370969393,0.14216157,141.89,141.86,5.92996127]
[1763370969584,0.14216157,141.89,141.87,22.6512]
[1763370969904,0.81216157,141.88,141.87,22.6512]
[1763370970084,0.81216157,141.88,141.86,17.38938795]
[1763370970286,0.81216157,141.88,141.87,22.6512]
[1763370970608,0.81216157,141.88,141.87,25.99679362]
[1763370973606,0.14216157,141.88,141.87,25.99679362]
[1763370975685,7.7,141.9,141.87,29.34238724]
[1763370975903,7.7,141.9,141.89,29.34238724]
[1763370976290,7.7,141.9,141.89,29.89238724]
[1763370978616,7.7,141.9,141.89,29.34238724]
[1763370978920,0.1,141.91,141.89,37.04238724]
[1763370979224,0.1,141.91,141.9,3.34559362]
[1763370980324,0.1,141.91,141.9,11.04559362]
[1763370981104,0.90216157,141.91,141.9,11.04559362]
[1763370981288,0.90216157,141.91,141.9,3.34559362]
[1763370981492,0.90216157,141.91,141.89,3.34559362]
[1763370981799,8.36,141.9,141.87,3.34559362]
[1763370982306,0.14216157,141.88,141.87,3.34559362]
[1763370982824,0.80216157,141.88,141.87,3.34559362]
[1763370984891,0.80216157,141.88,141.87,2.14131146]
[1763370985393,7.7,141.89,141.87,2.14131146]
[1763370985596,0.14216157,141.88,141.86,7.92897192]
[1763370985786,0.14216157,141.88,141.86,8.47897192]
[1763370985981,0.14216157,141.88,141.86,7.92897192]
[1763370986193,0.14216157,141.88,141.87,22.6512]
[1763370986923,0.14216157,141.88,141.87,24.79251146]
[1763370987088,0.14216157,141.88,141.87,33.15251146]
[1763370987718,7.84216157,141.88,141.87,33.15251146]
[1763370988289,7.7,141.88,141.87,33.15251146]
[1763370988498,7.7,141.9,141.87,33.70251146]
[1763370988708,7.7,141.9,141.89,2.14131146]
[1763370989015,7.7,141.9,141.89,24.79251146]
[1763370989219,7.84216157,141.9,141.89,24.79251146]
[1763370989508,7.84216157,141.9,141.89,45.97670804]
[1763370990493,8.53216157,141.9,141.89,45.97670804]
[1763370995129,7.84216157,141.9,141.89,45.97670804]
[1763370995495,8.53216157,141.9,141.89,45.97670804]
[1763370996116,8.53216157,141.9,141.89,24.79251146]
[1763370996798,8.39,141.9,141.89,22.6512]
[1763370997000,8.53216157,141.9,141.89,24.79251146]
[1763370997423,7.84216157,141.9,141.89,24.79251146]
[1763370997623,8.53216157,141.9,141.89,24.79251146]
[1763370998694,7.84216157,141.9,141.89,24.79251146]
[1763370998994,8.53216157,141.9,141.89,24.79251146]
[1763371000241,7.7,141.9,141.89,27.48382292]
[1763371000536,0.1,141.91,141.89,36.72265061]
[1763371000744,0.79,141.91,141.9,2.14131146]
[1763371003035,0.79,141.91,141.89,54.6352348]
[1763371003221,0.14216157,141.9,141.89,22.6512]
[1763371003531,0.14216157,141.9,141.89,26.93382292]
[1763371003830,0.83216157,141.9,141.89,26.93382292]
[1763371004924,0.1,141.91,141.89,27.48382292]
[1763371005128,0.1,141.91,141.9,2.14131146]
[1763371005519,0.79,141.91,141.9,2.14131146]
[1763371006019,0.1,141.91,141.9,2.14131146]
[1763371006530,0.79,141.91,141.9,2.14131146]
[1763371009208,0.1,141.91,141.9,2.69131146]
[1763371010012,7.7,141.93,141.9,10.39131146]
[1763371010211,7.84216157,141.93,141.92,2.14131146]
[1763371010616,7.7,141.93,141.92,24.79251146]
[1763371011806,8.39,141.93,141.92,24.79251146]
[1763371015836,7.7,141.93,141.92,24.79251146]
[1763371016541,8.39,141.93,141.92,24.79251146]
[1763371017221,7.7,141.93,141.92,24.79251146]
[1763371017422,102.72781457,141.96,141.92,24.79251146]
[1763371017423,7.7,141.96,141.92,34.58133915]
[1763371017639,0.69,141.95,141.92,34.58133915]
[1763371017840,7.7,141.96,141.95,22.6512]
[1763371018044,7.8,141.98,141.96,22.6512]
[1763371018239,7.8,141.98,141.96,26.93382292]
[1763371018425,8.49,141.98,141.96,26.93382292]
[1763371019920,7.8,141.98,141.96,26.93382292]
[1763371020241,0.1,141.98,141.96,33.9077573]
[1763371020437,0.1,141.98,141.97,2.14131146]
[1763371020818,0.1,141.98,141.97,2.69131146]
[1763371021342,0.1,141.98,141.97,5.51387787]
[1763371021720,0.1,141.98,141.97,4.96387787]
[1763371023334,0.1,141.99,141.97,15.30270556]
[1763371023522,0.1,142.0,141.99,2.14131146]
[1763371023728,8.48,142.04,141.99,2.14131146]
[1763371023935,8.48,142.04,142.03,2.14131146]
[1763371024131,0.1,142.04,142.03,4.28262292]
[1763371024343,0.1,142.06,142.05,22.6512]
[1763371024628,0.1,142.06,142.05,2.14131146]
[1763371024822,0.1,142.06,142.05,24.79251146]
[1763371025019,0.68,142.09,142.05,25.34251146]
[1763371025326,2.61593088,142.11,142.08,2.14131146]
[1763371025526,2.61593088,142.11,142.1,2.14131146]
[1763371025946,1.93593088,142.11,142.1,4.28262292]
[1763371026353,1.93593088,142.11,142.1,26.93382292]
[1763371026736,2.61593088,142.11,142.1,26.93382292]
[1763371026933,2.61593088,142.11,142.06,16.82772677]
[1763371026934,2.61593088,142.11,142.05,21.12354064]
[1763371027250,2.07809245,142.11,142.1,2.14131146]
[1763371027662,2.75809245,142.11,142.1,2.14131146]
[1763371028352,1.93593088,142.11,142.1,4.83262292]
[1763371028528,0.68,142.15,142.1,33.9077573]
[1763371028727,18.81970283,142.23,142.14,2.14131146]
[1763371028728,0.68,142.17,142.14,2.14131146]
[1763371028953,0.68,142.17,142.16,2.14131146]
[1763371029267,0.68,142.17,142.13,22.6512]
[1763371029426,0.68,142.17,142.16,2.14131146]
[1763371030254,0.68,142.19,142.16,2.14131146]
[1763371030549,24.79251146,142.24,142.18,2.14131146]
[1763371030753,0.14216157,142.23,142.18,2.14131146]
[1763371030954,0.68,142.23,142.19,2.14131146]
[1763371031267,2.82131146,142.23,142.18,2.14131146]
[1763371031432,0.14216157,142.22,142.18,2.14131146]
[1763371031637,0.68,142.22,142.17,31.21644584]
[1763371031957,0.68,142.22,142.17,22.6512]
[1763371032470,2.28347303,142.19,142.14,2.14131146]
[1763371032927,0.14216157,142.17,142.14,2.14131146]
[1763371033128,0.14216157,142.17,142.12,22.6512]
[1763371033328,0.68,142.18,142.1,22.6512]
[1763371033329,0.14216157,142.15,142.1,22.6512]
[1763371033554,0.14216157,142.15,142.07,10.33882769]
[1763371033755,0.14216157,142.13,142.1,2.82017837]
[1763371034056,0.14216157,142.13,142.11,2.14131146]
[1763371034242,0.68,142.12,142.07,10.33882769]
[1763371034443,0.82216157,142.12,142.11,2.14131146]
[1763371035060,9.78882769,142.2,142.11,2.14131146]
[1763371035231,0.14216157,142.13,142.1,2.14131146]
[1763371035431,0.68,142.14,142.11,22.6512]
[1763371036354,7.7,142.15,142.13,2.14131146]
[1763371036526,7.84216157,142.15,142.14,2.14131146]
[1763371036950,0.68,142.17,142.15,22.6512]
[1763371037146,0.68,142.17,142.16,2.14131146]
[1763371037542,0.82216157,142.17,142.16,2.14131146]
[1763371037741,0.68,142.17,142.16,2.14131146]
[1763371037943,0.82216157,142.17,142.16,2.14131146]
[1763371038338,0.68,142.17,142.15,22.6512]
[1763371038538,0.82216157,142.17,142.16,2.14131146]
[1763371039268,0.82216157,142.17,142.15,22.6512]
[1763371039437,0.82216157,142.17,142.16,2.14131146]
[1763371040677,0.14216157,142.17,142.16,2.14131146]
[1763371040864,0.84216157,142.17,142.16,2.14131146]
[1763371041048,0.84216157,142.17,142.16,24.79251146]
[1763371042948,0.14216157,142.16,142.13,22.6512]
[1763371043148,0.14216157,142.14,142.09,0.55]
[1763371043366,0.14216157,142.14,142.13,2.14131146]
[1763371043565,0.84216157,142.14,142.12,30.3512]
[1763371043761,0.84216157,142.14,142.13,2.14131146]
[1763371043966,0.7,142.14,142.13,2.14131146]
[1763371044175,8.4,142.16,142.15,22.6512]
[1763371044473,8.54216157,142.16,142.15,24.79251146]
[1763371045252,0.14216157,142.15,142.14,24.79251146]
[1763371045569,8.4,142.16,142.15,22.6512]
[1763371045785,8.54216157,142.16,142.15,24.79251146]
[1763371045971,8.54216157,142.16,142.15,22.6512]
[1763371046157,0.14216157,142.15,142.12,7.7]
[1763371046362,0.14216157,142.15,142.14,24.79251146]
[1763371046870,0.14216157,142.15,142.14,25.9842655]
[1763371049552,7.84216157,142.16,142.15,22.6512]
[1763371049760,7.84216157,142.16,142.15,25.9842655]
[1763371049959,7.7,142.16,142.15,25.9842655]
[1763371050276,7.7,142.16,142.15,26.5342655]
[1763371050472,0.7,142.18,142.15,26.5342655]
[1763371050681,0.7,142.23,142.17,22.6512]
[1763371050879,0.7,142.22,142.21,3.3330655]
[1763371051061,0.7,142.22,142.17,22.6512]
[1763371051276,0.7,142.22,142.21,3.3330655]
[1763371051459,0.7,142.22,142.19,7.91324235]
[1763371052275,0.14216157,142.21,142.16,22.6512]
[1763371052577,0.14216157,142.21,142.15,22.6512]
[1763371052578,0.14216157,142.17,142.14,9.78882769]
[1763371052879,0.14216157,142.17,142.11,22.6512]
[1763371053076,0.14216157,142.15,142.09,3.3330655]
[1763371053378,0.14216157,142.15,142.13,3.3330655]
[1763371053555,0.84216157,142.15,142.14,3.3330655]
[1763371055876,0.14216157,142.14,142.13,3.3330655]
[1763371056079,0.84216157,142.14,142.13,3.3330655]
[1763371056453,0.84216157,142.14,142.13,25.9842655]
[1763371056669,0.84216157,142.14,142.13,3.3330655]
[1763371057764,0.84216157,142.16,142.11,7.58650378]
[1763371057960,7.84216157,142.15,142.14,22.6512]
[1763371058265,7.7,142.15,142.14,25.9842655]
[1763371058481,0.14216157,142.16,142.14,25.9842655]
[1763371058660,7.7,142.2,142.15,3.3330655]
[1763371058860,0.7,142.2,142.18,3.3330655]
[1763371059082,0.7,142.22,142.19,3.3330655]
[1763371059261,0.14216157,142.21,142.2,3.3330655]
[1763371059668,0.84216157,142.21,142.2,3.3330655]
[1763371060270,0.7,142.21,142.2,3.3330655]
[1763371060663,0.84216157,142.21,142.2,3.3330655]
[1763371060973,0.14216157,142.2,142.19,3.3330655]
[1763371061991,0.84216157,142.2,142.19,3.3330655]
[1763371063368,0.84216157,142.2,142.16,22.6512]
[1763371063577,0.84216157,142.2,142.18,3.3330655]
[1763371065475,0.84216157,142.2,142.19,3.3330655]
[1763371065871,0.14216157,142.21,142.19,3.3330655]
[1763371066071,0.14216157,142.21,142.2,3.3330655]
[1763371067392,0.21324235,142.28,142.2,3.3330655]
[1763371067393,0.7,142.23,142.2,3.3330655]
[1763371067565,0.7,142.22,142.2,3.3330655]
[1763371068260,0.7,142.22,142.18,5.84703275]
[1763371068467,0.7,142.22,142.21,3.3330655]
[1763371068791,0.7,142.22,142.2,3.3330655]
[1763371070663,0.14216157,142.21,142.18,5.84703275]
[1763371070868,0.14216157,142.21,142.18,3.3330655]
[1763371071093,0.14216157,142.19,142.18,3.3330655]
[1763371071591,0.84216157,142.19,142.18,3.3330655]
[1763371072301,0.84216157,142.19,142.17,5.84703275]
[1763371072592,7.84216157,142.18,142.17,5.84703275]
[1763371072804,0.14216157,142.18,142.17,5.84703275]
[1763371073092,0.14216157,142.17,142.16,3.3330655]
[1763371073269,0.14216157,142.17,142.16,9.18009825]
[1763371073464,0.84216157,142.17,142.16,9.18009825]
[1763371073871,0.84216157,142.17,142.16,5.84703275]
[1763371074070,0.84216157,142.17,142.16,3.3330655]
[1763371074567,0.84216157,142.17,142.15,28.49823275]
[1763371074788,0.84216157,142.17,142.16,3.3330655]
[1763371076568,0.14216157,142.22,142.15,28.49823275]
[1763371076765,0.14216157,142.18,142.17,3.3330655]
[1763371077294,0.7,142.19,142.17,3.3330655]
[1763371078290,0.7,142.19,142.18,3.3330655]
[1763371078470,0.7,142.21,142.18,3.3330655]
[1763371078671,7.7,142.2,142.18,3.3330655]
[1763371079168,8.4,142.2,142.18,3.3330655]
[1763371079366,7.7,142.27,142.19,3.3330655]
[1763371079571,7.7,142.27,142.21,3.3330655]
[1763371079572,7.7,142.26,142.21,3.3330655]
[1763371079776,8.4,142.26,142.22,3.3330655]
[1763371079992,0.7,142.25,142.22,3.3330655]
[1763371080182,102.685653,142.29,142.19,23.2012]
[1763371080183,0.1,142.29,142.24,3.3330655]
[1763371080378,0.1,142.29,142.23,23.2012]
[1763371080581,0.1,142.29,142.24,28.49823275]
[1763371080790,0.1,142.29,142.28,3.3330655]
[1763371081094,0.1,142.29,142.28,0.55]
[1763371081279,0.1,142.32,142.28,23.2012]
[1763371081466,0.71,142.34,142.3,22.6512]
[1763371081669,0.71,142.34,142.29,9.78882769]
[1763371081870,0.71,142.34,142.29,22.6512]
[1763371082577,0.71,142.34,142.28,22.6512]
[1763371082777,0.14216157,142.33,142.31,8.82390444]
[1763371082988,0.14216157,142.33,142.28,22.538031]
[1763371083196,0.14216157,142.31,142.29,8.82390444]
[1763371083372,0.14216157,142.31,142.25,0.35]
[1763371083719,0.14216157,142.29,142.26,5.19186816]
[1763371084009,0.14216157,142.29,142.24,8.82390444]
[1763371084296,0.14216157,142.27,142.23,8.82390444]
[1763371084501,0.14216157,142.27,142.24,8.82390444]
[1763371084802,0.14216157,142.25,142.24,8.82390444]
[1763371085210,0.85216157,142.25,142.19,16.9]
[1763371085381,0.85216157,142.25,142.21,8.82390444]
[1763371085788,0.85216157,142.25,142.19,16.9]
[1763371085980,0.85216157,142.25,142.2,8.82390444]
[1763371086180,9.67606601,142.25,142.19,16.9]
[1763371086400,0.14216157,142.23,142.19,16.9]
[1763371086780,0.14216157,142.21,142.19,16.9]
[1763371087177,0.71,142.2,142.14,0.35]
[1763371087397,0.14216157,142.22,142.19,8.82390444]
[1763371087700,0.85216157,142.22,142.21,8.82390444]
[1763371088007,0.71,142.25,142.21,8.82390444]
[1763371088200,0.71,142.25,142.17,10.13882769]
[1763371088404,0.14216157,142.24,142.22,8.82390444]
[1763371088576,0.14216157,142.22,142.21,8.82390444]
[1763371088776,0.14216157,142.22,142.2,8.82390444]
[1763371088970,0.85216157,142.22,142.2,8.82390444]
[1763371089202,0.85216157,142.22,142.16,22.6512]
[1763371089504,0.85216157,142.22,142.18,8.82390444]
[1763371089702,0.14216157,142.22,142.21,8.82390444]
[1763371090077,0.71,142.27,142.21,9.17390444]
[1763371090393,0.14216157,142.26,142.25,8.82390444]
[1763371090582,0.71,142.27,142.25,8.82390444]
[1763371090789,0.71,142.26,142.25,8.82390444]
[1763371091106,0.71,142.32,142.25,14.01883015]
[1763371091304,0.71,142.34,142.29,8.82390444]
[1763371091605,0.71,142.34,142.3,8.82390444]
[1763371091798,0.71,142.34,142.31,8.82390444]
[1763371092309,0.71,142.34,142.3,8.82390444]
[1763371092708,0.71,142.34,142.25,23.0012]
[1763371092879,9.53390444,142.34,142.26,5.18590525]
[1763371093084,0.14216157,142.33,142.28,8.82390444]
[1763371093287,0.14216157,142.31,142.21,6.19703275]
[1763371093484,0.14216157,142.31,142.26,8.82390444]
[1763371093689,0.14216157,142.29,142.23,22.6512]
[1763371093894,0.71,142.28,142.25,8.82390444]
[1763371094104,0.14216157,142.29,142.27,8.82390444]
[1763371094418,0.85216157,142.29,142.23,22.6512]
[1763371094594,0.85216157,142.29,142.25,8.82390444]
[1763371095085,0.85216157,142.29,142.26,8.82390444]
[1763371095696,0.85216157,142.29,142.25,8.82390444]
[1763371096008,0.71,142.3,142.28,8.82390444]
[1763371096181,8.82390444,142.34,142.28,8.82390444]
[1763371096380,0.14216157,142.33,142.28,8.82390444]
[1763371096580,0.85216157,142.33,142.28,8.82390444]
[1763371097102,0.85216157,142.33,142.3,8.82390444]
[1763371097103,0.71,142.33,142.3,8.82390444]
[1763371097302,0.71,142.33,142.31,8.82390444]
[1763371097606,0.14216157,142.32,142.26,0.35]
[1763371097777,0.14216157,142.32,142.31,8.82390444]
[1763371097978,0.71,142.33,142.31,8.82390444]
[1763371098177,0.14216157,142.32,142.28,22.6512]
[1763371098492,0.14216157,142.32,142.29,14.00387228]
[1763371098693,0.14216157,142.3,142.29,8.82390444]
[1763371099079,0.84216157,142.3,142.29,8.82390444]
[1763371099289,0.84216157,142.3,142.28,22.6512]
[1763371099290,0.84216157,142.3,142.28,8.82390444]
[1763371099499,0.84216157,142.3,142.27,8.82390444]
[1763371099696,0.84216157,142.3,142.28,8.82390444]
[1763371099902,0.14216157,142.3,142.29,8.82390444]
[1763371100098,0.84216157,142.3,142.28,8.82390444]
[1763371100278,0.84216157,142.3,142.26,22.6512]
[1763371100481,0.84216157,142.3,142.27,14.00433763]
[1763371100683,0.14216157,142.31,142.29,8.82390444]
[1763371100906,0.14216157,142.31,142.3,8.82390444]
[1763371101295,0.84216157,142.31,142.3,8.82390444]
[1763371101496,0.84216157,142.31,142.29,8.82390444]
[1763371101688,0.84216157,142.31,142.28,8.82390444]
[1763371101889,9.66606601,142.31,142.25,8.82390444]
[1763371102424,9.78882769,142.35,142.24,8.82390444]
[1763371102425,0.14216157,142.29,142.24,8.82390444]
[1763371102596,0.14216157,142.29,142.25,5.18546068]
[1763371102803,0.14216157,142.27,142.19,0.35]
[1763371102986,0.14216157,142.27,142.23,8.82390444]
[1763371103188,0.14216157,142.25,142.23,8.82390444]
[1763371103406,0.14216157,142.25,142.24,8.82390444]
[1763371104422,0.14216157,142.27,142.24,14.01304813]
[1763371104584,7.7,142.26,142.25,14.01304813]
[1763371104785,0.14216157,142.25,142.2,31.82510444]
[1763371105014,0.84216157,142.25,142.21,5.18855997]
[1763371105213,0.84216157,142.25,142.24,8.82390444]
[1763371105689,0.14216157,142.25,142.24,8.82390444]
[1763371105993,0.14216157,142.24,142.23,8.82390444]
[1763371106193,0.14216157,142.24,142.22,8.82390444]
[1763371106412,0.14216157,142.24,142.21,8.82390444]
[1763371106413,0.7,142.23,142.21,8.82390444]
[1763371106790,0.7,142.23,142.21,5.70914899]
[1763371107291,0.14216157,142.22,142.21,5.70914899]
[1763371107694,0.14216157,142.22,142.2,5.70914899]
[1763371107892,0.84216157,142.22,142.17,0.35]
[1763371108090,0.84216157,142.22,142.2,5.70914899]
[1763371108498,0.84216157,142.22,142.19,5.70914899]
[1763371108906,0.84216157,142.22,142.2,5.70914899]
[1763371109292,0.84216157,142.22,142.18,22.6512]
[1763371109497,0.84216157,142.22,142.2,5.70914899]
[1763371109899,0.14216157,142.23,142.18,22.6512]
[1763371110094,0.14216157,142.23,142.18,23.0012]
[1763371110308,0.14216157,142.23,142.21,5.70914899]
[1763371110309,0.84216157,142.23,142.21,5.70914899]
[1763371110693,0.84216157,142.23,142.22,5.70914899]
[1763371110893,0.14216157,142.23,142.22,5.70914899]
[1763371111412,0.68,142.25,142.22,5.70914899]
[1763371111612,0.68,142.25,142.23,5.70914899]
[1763371112804,0.82216157,142.25,142.24,5.70914899]
[1763371114196,0.14216157,142.24,142.21,5.70914899]
[1763371114509,0.68,142.23,142.21,4.27914899]
[1763371114814,0.68,142.23,142.19,22.6512]
[1763371115109,0.68,142.23,142.21,5.70914899]
[1763371115318,7.74216157,142.22,142.15,6.19703275]
[1763371115618,7.74216157,142.22,142.19,5.70914899]
[1763371115814,0.14216157,142.2,142.19,5.70914899]
[1763371117391,7.6,142.24,142.19,6.05914899]
[1763371117595,7.6,142.24,142.17,22.6512]